Workbook

Sheet Menu

Sheet Calque (hidden)
B2: 1 | C2: Assurance Fiesta | D2: -18.06
B3: 1 | C3: Assurance 207 | D3: -45.58
B4: 1 | C4: Emprunt_OPEN | D4: -300
B5: 2 | C5: ARCCO Jean | D5: 732.98
B6: 2 | C6: AGIRC Jean | D6: 457.94
B7: 2 | C7: ARCCO Délia | D7: 97.74
B8: 5 | C8: Assurance_CSCA | D8: -5.29
B9: 6 | C9: Assurance_VP | D9: -64.45
B10: 9 | C10: MSA Délia | D10: 43.26
B11: 9 | C11: Régime_Gal Délia | D11: 424.74
B12: 9 | C12: MSA_Jean | D12: 1227.84
B13: 9 | C13: Régime_Gal Jean | D13: 65.19
B14: 9 | C14: Assurance_Maison | D14: -41.1
B15: 10 | C15: Virt_Thibault | D15: -93.22
B16: 12 | C16: Eau | D16: -55.76
B17: 14 | C17: Internet | D17: -39.9
B18: 15 | C18: Mutuelle_Verte | D18: -189.82
B19: 15 | C19: Impôts_Locaux | D19: -101
B20: 15 | C20: Impôts_Revenu | D20: -82
B21: 15 | C21: Impôts_Foncier | D21: -92
B22: 20 | C22: Téléphone_Jean | D22: -37.99
B23: 25 | C23: EDF | D23: -77.96
B24: 25 | C24: CEL | D24: -152.45
B25: 25 | C25: SFR Délia | D25: 17.99

Sheet Analyse_Dynamique (hidden)
C6: Postes | E6: Mois | G6: Année | I6: Solde_Bque à J | L6: Postes | N6: Mois | P6: Année
C8: Alimentation | E8: =VLOOKUP($I$18,$AC$106:$AR$119,2,FALSE) -> 210.89 | G8: =INDIRECT("Analyse_Dynamique!AD120") -> 410.89 | I8: =INDIRECT("Base!O7") -> 4119.42 | L8: Recettes | N8: =VLOOKUP($I$18,$AC$87:$AE$99,3,FALSE) -> 3715.79 | P8: =INDIRECT("Analyse_Dynamique!AE100") -> 7431.58
C10: Assurances | E10: =VLOOKUP($I$18,$AC$106:$AR$119,3,FALSE) -> 64.12 | G10: =INDIRECT("Analyse_Dynamique!AE120") -> 192.36
C12: Banque | E12: =VLOOKUP($I$18,$AC$106:$AR$119,4,FALSE) -> 50 | G12: =INDIRECT("Analyse_Dynamique!AF120") -> 50 | I12: Solde Intermédiaire à J
C14: Eau_Gaz_Elec | E14: =VLOOKUP($I$18,$AC$106:$AR$119,5,FALSE) -> 50 | G14: =INDIRECT("Analyse_Dynamique!AG120") -> 50 | L14: Résultat | N14: =IF(N16<0,"Déficit","Excédent") -> Excédent | P14: =IF(P16<0,"Déficit","Excédent") -> Excédent
C16: Education | E16: =VLOOKUP($I$18,$AC$106:$AR$119,16,FALSE) -> 0 | G16: =INDIRECT("Analyse_Dynamique!AR120") -> 0 | I16: =INDIRECT("Base!N7") -> 4199.42 | N16: =N8-E38 -> 1973.44 | P16: =P8-G38 -> 2860.99
C18: Emprunt(s) | E18: =VLOOKUP($I$18,$AC$106:$AR$119,6,FALSE) -> 1250 | G18: =INDIRECT("Analyse_Dynamique!AH120") -> 3750 | I18: =IF(I20="En Cours",0,IF(I20="Janvier",1,IF(I20="Février",2,IF(I20="Mars",3,IF(I20="Avril",4,IF(I20="Mai",5,IF(I20="Juin",6,IF(I20="Juillet",7,IF(I20="Août",8,IF(I20="Septembre",9,IF(I20="Octobre",10,IF(I20="Novembre",11,IF(I20="Décembre",12,""))))))))))))) -> 1
C20: Epargne | E20: =VLOOKUP($I$18,$AC$106:$AR$119,7,FALSE) -> 58.34 | G20: =INDIRECT("Analyse_Dynamique!AI120") -> 58.34 | I20: Janvier
C22: Esthétique | E22: =VLOOKUP($I$18,$AC$106:$AR$119,8,FALSE) -> 59 | G22: =INDIRECT("Analyse_Dynamique!AJ120") -> 59
C24: Habillement | E24: =VLOOKUP($I$18,$AC$106:$AR$119,9,FALSE) -> 0 | G24: =INDIRECT("Analyse_Dynamique!AK120") -> 0
C26: Impôts | E26: =VLOOKUP($I$18,$AC$106:$AR$119,10,FALSE) -> 0 | G26: =INDIRECT("Analyse_Dynamique!AL120") -> 0 | L26: Cartes | N26: =VLOOKUP($I$18,$AC$67:$AH$78,2,FALSE) -> 298.23 | P26: =INDIRECT("Analyse_Dynamique!AD79") -> 498.23
C28: Logement | E28: =VLOOKUP($I$18,$AC$106:$AR$119,11,FALSE) -> 0 | G28: =INDIRECT("Analyse_Dynamique!AM120") -> 0
C30: Loisirs | E30: =VLOOKUP($I$18,$AC$106:$AR$119,12,FALSE) -> 0 | G30: =INDIRECT("Analyse_Dynamique!AN120") -> 0 | L30: Retrait_Espèces | N30: =VLOOKUP($I$18,$AC$67:$AH$78,4,FALSE) -> 50 | P30: =INDIRECT("Analyse_Dynamique!AF79") -> 50
C32: Santé | E32: =VLOOKUP($I$18,$AC$106:$AR$119,13,FALSE) -> 0 | G32: =INDIRECT("Analyse_Dynamique!AO120") -> 0
C34: Téléphonie | E34: =VLOOKUP($I$18,$AC$106:$AR$119,14,FALSE) -> 0 | G34: =INDIRECT("Analyse_Dynamique!AP120") -> 0 | L34: Chèque(s) | N34: =VLOOKUP($I$18,$AC$67:$AH$78,3,FALSE) -> 1280 | P34: =INDIRECT("Analyse_Dynamique!AE79") -> 3780
C36: Voiture | E36: =VLOOKUP($I$18,$AC$106:$AR$119,15,FALSE) -> 0 | G36: =INDIRECT("Analyse_Dynamique!AQ120") -> 0
C38: Total des dépenses | E38: =SUM(E8:E37) -> 1742.35 | G38: =SUM(G8:G36) -> 4570.59
AC63: Opération | AD63: Dépense
AD65: Support
AC66: Ajust | AD66: CDD | AE66: CHQ | AF66: ESP | AG66: PRL | AH66: VIR
AA67: =VLOOKUP($I$18,$AC$67:$AH$78,1,FALSE) -> 1 | AC67: 0 | AD67: 80 | AE67: 1250 | AG67: 64.12
AA68: =INDEX(AC66:AH78,MATCH(AA66,AC67:AH78,0)) ->  | AC68: 1 | AD68: 298.23 | AE68: 1280 | AF68: 50 | AG68: 64.12 | AH68: 50
AC69: 2 | AD69: 120 | AE69: 1250 | AG69: 64.12
AD79: =SUM(AD67:AD78) -> 498.23 | AE79: =SUM(AE67:AE78) -> 3780 | AF79: 50 | AG79: 192.36 | AH79: 50
AC85: Somme de Montant | AD85: Étiquettes de colonnes
AC86: Mois | AD86: Dépense | AE86: Recette
AC87: 0 | AD87: 1394.12
AC88: 1 | AD88: 1742.35 | AE88: 3715.79
AC89: 2 | AD89: 1434.12 | AE89: 3715.79
AD100: =SUM(AD87:AD99) -> 4570.59 | AE100: =SUM(AE87:AE99) -> 7431.58
AC103: Opération | AD103: Dépense
AC105: Somme de Montant | AD105: Mois
AC106: Catégories | AD106: Alimentation | AE106: Assurances | AF106: Banque | AG106: Epargne | AH106: Logement | AI106: Santé | AJ106: Voiture
AC107: 0 | AD107: 80 | AE107: 64.12 | AH107: 1250
AC108: 1 | AD108: 210.89 | AE108: 64.12 | AF108: 50 | AG108: 50 | AH108: 1250 | AI108: 58.34 | AJ108: 59
AC109: 2 | AD109: 120 | AE109: 64.12 | AH109: 1250
AD120: =SUM(AD107:AD119) -> 410.89 | AE120: =SUM(AE107:AE119) -> 192.36 | AF120: 50 | AG120: 50 | AH120: 3750 | AI120: 58.34 | AJ120: 59 | AK120: 0 | AL120: 0 | AM120: 0 | AN120: 0 | AO120: 0 | AP120: 0 | AQ120: 0 | AR120: 0 | AS120: 0

Sheet Base (hidden)
A6: Dat_Ope | B6: Dat_Ope_Jour | C6: Dat_Ope_Mois | D6: Dat_FDM | E6: Dat_Cptbl | F6: Opération | G6: Catégorie | H6: Poste | I6: Libellé | J6: Support | K6: N°_Support/Ref | L6: Montant | M6: Ajust | N6: Sold_Interm | O6: Sold_Bque
A7: 2019-03-05 | B7: =DAY(A7) -> 5 | C7: =MONTH(A7) -> 3 | D7: =IF(VLOOKUP(C7,Planning,2,0)>B7,VLOOKUP(C7,Planning,3,0),VLOOKUP(C7,Planning,4,0)) -> 2019-03-31 | E7: =IF(AND(M7=0,J7="CDD"),D7,A7) -> 2019-03-31 | F7: Dépense | G7: Alimentation | H7: Alim_Entretien | I7: leclerc | J7: CDD | L7: 80 | M7: 0 | N7: =IF(AND(F7="Dépense",J7="CDD",M7=0),N8,IF(AND(F7="Dépense",J7="CDD",M7<>0),N8-L7,IF(AND(F7="Dépense",J7<>"CDD"),N8-L7,IF(F7="Recette",N8+L7,0)))) -> 4199.42 | O7: =IF(F7="Dépense",O8-L7,O8+L7) -> 4119.42
A8: 2019-03-10 | B8: 10 | C8: 3 | D8: 2019-03-31 | E8: 2019-03-10 | F8: Dépense | G8: Logement | H8: Loyers | I8: Dutoit | J8: CHQ | L8: 1250 | M8: 0 | N8: 4199.42 | O8: 4199.42
A9: 2019-03-03 | B9: 3 | C9: 3 | D9: 2019-03-31 | E9: 2019-03-03 | F9: Dépense | G9: Assurances | H9: Voiture | I9: VW | J9: PRL | L9: 45.37 | M9: 0 | N9: 5449.42 | O9: 5449.42
A10: 2019-03-03 | B10: 3 | C10: 3 | D10: 2019-03-31 | E10: 2019-03-03 | F10: Dépense | G10: Assurances | H10: Voiture | I10: Renault | J10: PRL | L10: 18.75 | M10: 0 | N10: 5494.79 | O10: 5494.79
A11: 2019-02-15 | B11: 15 | C11: 2 | D11: 2019-02-28 | E11: 2019-02-15 | F11: Dépense | G11: Logement | H11: Loyers | I11: Dutoit | J11: CHQ | L11: 1250 | M11: 2 | N11: 5513.54 | O11: 5513.54
A12: 2019-02-10 | B12: 10 | C12: 2 | D12: 2019-02-28 | E12: 2019-02-10 | F12: Dépense | G12: Alimentation | H12: Bouch_Charcut | I12: dumou | J12: CDD | L12: 120 | M12: 2 | N12: 6763.54 | O12: 6763.54
A13: 2019-02-05 | B13: 5 | C13: 2 | D13: 2019-02-28 | E13: 2019-02-05 | F13: Recette | G13: Revenus | H13: Salaires | I13: Véro | J13: VIR | L13: 1259.47 | M13: 2 | N13: 6883.54 | O13: 6883.54
A14: 2019-02-05 | B14: 5 | C14: 2 | D14: 2019-02-28 | E14: 2019-02-05 | F14: Recette | G14: Revenus | H14: Salaires | I14: Polo | J14: VIR | L14: 2456.32 | M14: 2 | N14: 5624.07 | O14: 5624.07
A15: 2019-02-05 | B15: 5 | C15: 2 | D15: 2019-02-28 | E15: 2019-02-05 | F15: Dépense | G15: Assurances | H15: Voiture | I15: Renault | J15: PRL | L15: 18.75 | M15: 2 | N15: 3167.75 | O15: 3167.75
A16: 2019-02-05 | B16: 5 | C16: 2 | D16: 2019-02-28 | E16: 2019-02-05 | F16: Dépense | G16: Assurances | H16: Voiture | I16: VW | J16: PRL | L16: 45.37 | M16: 2 | N16: 3186.5 | O16: 3186.5
A17: 2019-01-19 | B17: 19 | C17: 1 | D17: 2019-01-31 | E17: 2019-01-19 | F17: Dépense | G17: Santé | H17: Pharmacie | I17: Phie du Coin | J17: CDD | L17: 28.34 | M17: 1 | N17: 3231.87 | O17: 3231.87
A18: 2019-01-18 | B18: 18 | C18: 1 | D18: 2019-01-31 | E18: 2019-01-18 | F18: Dépense | G18: Santé | H18: Médecin | I18: Dr BIBI | J18: CHQ | K18: 6544455 | L18: 30 | M18: 1 | N18: 3260.21 | O18: 3260.21
A19: 2019-01-12 | B19: 12 | C19: 1 | D19: 2019-01-31 | E19: 2019-01-12 | F19: Dépense | G19: Voiture | H19: Carburant | I19: Total Beauvais | J19: CDD | L19: 59 | M19: 1 | N19: 3290.21 | O19: 3290.21
A20: 2019-01-10 | B20: 10 | C20: 1 | D20: 2019-01-31 | E20: 2019-01-10 | F20: Dépense | G20: Alimentation | H20: Alim_Entretien | I20: Leclerc | J20: CDD | L20: 112.56 | M20: 1 | N20: 3349.21 | O20: 3349.21
A21: 2019-01-06 | B21: 6 | C21: 1 | D21: 2019-01-31 | E21: 2019-01-06 | F21: Dépense | G21: Banque | H21: Retrait | I21: Guichet Senlis | J21: ESP | L21: 50 | M21: 1 | N21: 3461.77 | O21: 3461.77
A22: 2019-01-05 | B22: 5 | C22: 1 | D22: 2019-01-31 | E22: 2019-01-05 | F22: Recette | G22: Revenus | H22: Salaires | I22: Véro | J22: VIR | L22: 1259.47 | M22: 1 | N22: 3511.77 | O22: 3511.77
A23: 2019-01-05 | B23: 5 | C23: 1 | D23: 2019-01-31 | E23: 2019-01-05 | F23: Recette | G23: Revenus | H23: Salaires | I23: Polo | J23: VIR | L23: 2456.32 | M23: 1 | N23: 2252.3 | O23: 2252.3
A24: 2019-01-05 | B24: 5 | C24: 1 | D24: 2019-01-31 | E24: 2019-01-05 | F24: Dépense | G24: Logement | H24: Loyers | I24: Dutoit | J24: CHQ | K24: 67422114 | L24: 1250 | M24: 1 | N24: -204.02 | O24: -204.02
A25: 2019-01-02 | B25: 2 | C25: 1 | D25: 2019-01-31 | E25: 2019-01-02 | F25: Dépense | G25: Assurances | H25: Voiture | I25: VW | J25: PRL | L25: 45.37 | M25: 1 | N25: 1045.98 | O25: 1045.98
A26: 2019-01-02 | B26: 2 | C26: 1 | D26: 2019-01-31 | E26: 2019-01-02 | F26: Dépense | G26: Assurances | H26: Voiture | I26: Renault | J26: PRL | L26: 18.75 | M26: 1 | N26: 1091.35 | O26: 1091.35
A27: 2019-01-02 | B27: 2 | C27: 1 | D27: 2019-01-31 | E27: 2019-01-02 | F27: Dépense | G27: Epargne | H27: Projet | I27: Projet à vednir | J27: VIR | K27: 536789 | L27: 50 | M27: 1 | N27: 1110.1 | O27: 1110.1
A28: 2019-01-01 | B28: 1 | C28: 1 | D28: 2019-01-31 | E28: 2019-01-01 | F28: Dépense | G28: Alimentation | H28: Alim_Entretien | I28: Carrefour | J28: CDD | L28: 98.33 | M28: 1 | N28: 1160.1 | O28: 1160.1
F29: Recette | I29: Solde Initial | L29: 1258.43 | M29: 99 | N29: 1258.43 | O29: 1258.43

Sheet Planning (hidden)
J3: Année
J4: 2019
K6: Mois | L6: Jour | M6: FDM=0 | N6: FDM+1
J7: Janvier | K7: 1 | L7: 21 | M7: =EOMONTH(DATE(An_0,$K7,$L7),0) -> 2019-01-31 | N7: =EOMONTH(DATE(An_0,$K7,$L7),1) -> 2019-02-28
J8: Février | K8: 2 | L8: 21 | M8: 2019-02-28 | N8: 2019-03-31
J9: Mars | K9: 3 | L9: 21 | M9: 2019-03-31 | N9: 2019-04-30
J10: Avril | K10: 4 | L10: 22 | M10: 2019-04-30 | N10: 2019-05-31
J11: Mai | K11: 5 | L11: 22 | M11: 2019-05-31 | N11: 2019-06-30
J12: Juin | K12: 6 | L12: 20 | M12: 2019-06-30 | N12: 2019-07-31
J13: Juillet | K13: 7 | L13: 22 | M13: 2019-07-31 | N13: 2019-08-31
J14: Août | K14: 8 | L14: 22 | M14: 2019-08-31 | N14: 2019-09-30
J15: Septembre | K15: 9 | L15: 23 | M15: 2019-09-30 | N15: 2019-10-31
J16: Octobre | K16: 10 | L16: 22 | M16: 2019-10-31 | N16: 2019-11-30
J17: Novembre | K17: 11 | L17: 21 | M17: 2019-11-30 | N17: 2019-12-31
J18: Décembre | K18: 12 | L18: 23 | M18: 2019-12-31 | N18: 2020-01-31

Sheet CreOp (hidden)
C7: Date d'opération
C9: Opération
C11: Catégorie
C13: Poste
C15: Libellé
C17: Support
C19: N° chèque, remise, …
C21: Montant | F21: €

Sheet Liste (hidden)
B2: Catégories | D2: Alimentation | F2: Assurances | H2: Banque | J2: Eau_Gaz_Elec | L2: Education | N2: Epargne | P2: Esthétique | R2: Habillement | T2: Impôts | V2: Logement | X2: Loisirs | Z2: Revenus | AB2: Santé | AD2: Téléphonie | AF2: Voiture | AH2: Emprunt | AJ2: Support | AL2: Opération | AN2: Mois
B3: Alimentation | D3: Alim_Entretien | F3: Habitation | H3: Abonnement | J3: Eau | L3: Cantine | N3: Bourse | P3: Coiffeur | R3: Chaussures | T3: Amendes | V3: Charges | X3: Cadeaux | Z3: Allocations | AB3: Dentiste | AD3: Fixe | AF3: Carburant | AH3: Immobilier | AJ3: CDD | AL3: Dépense | AN3: En cours
B4: Assurances | D4: Bouch_Charcut | F4: Mutuelle_Santé | H4: Agios | J4: Electricité | L4: Scolarité | N4: CEL | P4: Manucure | R4: Vêtements | T4: Foncier | V4: Equipement | X4: Cinéma_Spectacles | Z4: Dividendes | AB4: Laboratoire | AD4: Internet | AF4: Emprunt | AH4: Mobilier | AJ4: CDI | AL4: Recette | AN4: Janvier
B5: Banque | D5: Boulang_Pâtiss | F5: Prévoyance | H5: Frais | J5: Gaz | L5: Sorties_Voyages | N5: Livret | P5: Onglerie | T5: Locaux | V5: Loyers | X5: Jeux | Z5: Locatifs | AB5: Médecin | AD5: Portable | AF5: Entretien | AH5: Trésorerie | AJ5: CHQ | AN5: Février
B6: Eau_Gaz_Elec | D6: Poisson_Crustacé | F6: Scolaire | H6: Intérêts | N6: PEL | P6: Pédicure | T6: Redevances | V6: Outillage | X6: Péage | Z6: Pensions | AB6: Pharmacie | AF6: Réparation | AH6: TV_Hifi | AJ6: ESP | AN6: Mars
B7: Education | D7: Surgelé | F7: Sécuricompte | H7: Remise | N7: Projet | T7: Revenus | V7: Travaux | X7: Restaurant/Hôtel | Z7: Salaires | AB7: Radiologie | AH7: Voiture | AJ7: PRL | AN7: Avril
B8: Epargne | D8: Traiteur | F8: Voiture | H8: Retrait | X8: Vacances | AB8: Spécialiste | AJ8: VIR | AN8: Mai
B9: Emprunt | X9: Voyages | AN9: Juin
B10: Esthétique | AN10: Juillet
B11: Habillement | AN11: Août
B12: Impôts | AN12: Septembre
B13: Logement | AN13: Octobre
B14: Loisirs | AN14: Novembre
B15: Revenus | AN15: Décembre
B16: Santé
B17: Téléphonie
B18: Voiture

Sheet Prévisionnel (hidden)
A6: Colonne1 | B6: Colonne2 | C6: Colonne3 | D6: Colonne4 | E6: Colonne5 | F6: Colonne6 | G6: Colonne7 | H6: Colonne8 | I6: Colonne9 | J6: Colonne10 | K6: Colonne11 | L6: Colonne12 | M6: Colonne13 | N6: Colonne14 | O6: Colonne15 | P6: Colonne16
B7: =TODAY() -> 2019-03-22 | E7: =EDATE(B7,1) -> 2019-04-22 | F7: =EDATE(B7,2) -> 2019-05-22 | G7: =EDATE(B7,3) -> 2019-06-22 | H7: =EDATE(B7,4) -> 2019-07-22 | I7: =EDATE(B7,5) -> 2019-08-22 | J7: =EDATE(B7,6) -> 2019-09-22 | K7: =EDATE(B7,7) -> 2019-10-22 | L7: =EDATE(B7,8) -> 2019-11-22 | M7: =EDATE(B7,9) -> 2019-12-22 | N7: =EDATE(B7,10) -> 2020-01-22 | O7: =EDATE(B7,11) -> 2020-02-22 | P7: =EDATE(B7,12) -> 2020-03-22
A8: Jour | B8: Libellé | C8: Montant | D8: Date_Fin | E8: =INDIRECT("Base!O7") -> 4119.42 | F8: =LOOKUP(9^9,E:E) -> 4717.57 | G8: 5315.72 | H8: 5913.87 | I8: 6512.02 | J8: 7110.17 | K8: 7708.32 | L8: 8306.47 | M8: 8904.62 | N8: 9502.77 | O8: 10100.92 | P8: 10699.07
A9: 1 | B9: Assurance Renault | C9: -18.75 | D9: déc.-50 | E9: =IF(AND($E$7<D9,C9<>0),E8+C9,IF(AND($E$7>D9,C9<>0),E8,IF(AND($E$7<D9,C9=0),""))) -> 4100.67 | F9: =IF(AND($F$7<D9,C9<>0),F8+C9,IF(AND($F$7>D9,C9<>0),F8,IF(AND($F$7<D9,C9=0),""))) -> 4698.82 | G9: =IF(AND($G$7<D9,C9<>0),G8+C9,IF(AND($G$7>D9,C9<>0),G8,IF(AND($G$7<D9,C9=0),""))) -> 5296.97 | H9: =IF(AND($H$7<D9,C9<>0),H8+C9,IF(AND($H$7>D9,C9<>0),H8,IF(AND($H$7<D9,C9=0),""))) -> 5895.12 | I9: =IF(AND($I$7<D9,C9<>0),I8+C9,IF(AND($I$7>D9,C9<>0),I8,IF(AND($I$7<D9,C9=0),""))) -> 6493.27 | J9: =IF(AND($J$7<D9,C9<>0),J8+C9,IF(AND($J$7>D9,C9<>0),J8,IF(AND($J$7<D9,C9=0),""))) -> 7091.42 | K9: =IF(AND($K$7<D9,C9<>0),K8+C9,IF(AND($K$7>D9,C9<>0),K8,IF(AND($K$7<D9,C9=0),""))) -> 7689.57 | L9: =IF(AND($L$7<D9,C9<>0),L8+C9,IF(AND($L$7>D9,C9<>0),L8,IF(AND($L$7<D9,C9=0),""))) -> 8287.72 | M9: =IF(AND($M$7<D9,C9<>0),M8+C9,IF(AND($M$7>D9,C9<>0),M8,IF(AND($M$7<D9,C9=0),""))) -> 8885.87 | N9: =IF(AND($N$7<D9,C9<>0),N8+C9,IF(AND($N$7>D9,C9<>0),N8,IF(AND($N$7<D9,C9=0),""))) -> 9484.02 | O9: =IF(AND($O$7<D9,C9<>0),O8+C9,IF(AND($O$7>D9,C9<>0),O8,IF(AND($O$7<D9,C9=0),""))) -> 10082.17 | P9: =IF(AND($P$7<D9,C9<>0),P8+C9,IF(AND($P$7>D9,C9<>0),P8,IF(AND($P$7<D9,C9=0),""))) -> 10680.32
A10: 1 | B10: Assurance VW | C10: -47.37 | D10: déc.-50 | E10: =IF(AND($E$7<D10,C10<>0),E9+C10,IF(AND($E$7>D10,C10<>0),E9,IF(AND($E$7<D10,C10=0),""))) -> 4053.3 | F10: =IF(AND($F$7<D10,C10<>0),F9+C10,IF(AND($F$7>D10,C10<>0),F9,IF(AND($F$7<D10,C10=0),""))) -> 4651.45 | G10: =IF(AND($G$7<D10,C10<>0),G9+C10,IF(AND($G$7>D10,C10<>0),G9,IF(AND($G$7<D10,C10=0),""))) -> 5249.6 | H10: =IF(AND($H$7<D10,C10<>0),H9+C10,IF(AND($H$7>D10,C10<>0),H9,IF(AND($H$7<D10,C10=0),""))) -> 5847.75 | I10: =IF(AND($I$7<D10,C10<>0),I9+C10,IF(AND($I$7>D10,C10<>0),I9,IF(AND($I$7<D10,C10=0),""))) -> 6445.9 | J10: =IF(AND($J$7<D10,C10<>0),J9+C10,IF(AND($J$7>D10,C10<>0),J9,IF(AND($J$7<D10,C10=0),""))) -> 7044.05 | K10: =IF(AND($K$7<D10,C10<>0),K9+C10,IF(AND($K$7>D10,C10<>0),K9,IF(AND($K$7<D10,C10=0),""))) -> 7642.2 | L10: =IF(AND($L$7<D10,C10<>0),L9+C10,IF(AND($L$7>D10,C10<>0),L9,IF(AND($L$7<D10,C10=0),""))) -> 8240.35 | M10: =IF(AND($M$7<D10,C10<>0),M9+C10,IF(AND($M$7>D10,C10<>0),M9,IF(AND($M$7<D10,C10=0),""))) -> 8838.5 | N10: =IF(AND($N$7<D10,C10<>0),N9+C10,IF(AND($N$7>D10,C10<>0),N9,IF(AND($N$7<D10,C10=0),""))) -> 9436.65 | O10: =IF(AND($O$7<D10,C10<>0),O9+C10,IF(AND($O$7>D10,C10<>0),O9,IF(AND($O$7<D10,C10=0),""))) -> 10034.8 | P10: =IF(AND($P$7<D10,C10<>0),P9+C10,IF(AND($P$7>D10,C10<>0),P9,IF(AND($P$7<D10,C10=0),""))) -> 10632.95
A11: 1 | B11: Emprunt_Ameublement | C11: -90 | D11: déc.-50 | E11: 3963.3 | F11: 4561.45 | G11: 5159.6 | H11: 5757.75 | I11: 6355.9 | J11: 6954.05 | K11: 7552.2 | L11: 8150.35 | M11: 8748.5 | N11: 9346.65 | O11: 9944.8 | P11: 10542.95
A12: 2 | B12: Salaire Polo | C12: 2456.32 | D12: déc.-50 | E12: 6419.62 | F12: 7017.77 | G12: 7615.92 | H12: 8214.07 | I12: 8812.22 | J12: 9410.37 | K12: 10008.52 | L12: 10606.67 | M12: 11204.82 | N12: 11802.97 | O12: 12401.12 | P12: 12999.27
A13: 2 | B13: Salaire Véro | C13: 1259.47 | D13: déc.-50 | E13: 7679.09 | F13: 8277.24 | G13: 8875.39 | H13: 9473.54 | I13: 10071.69 | J13: 10669.84 | K13: 11267.99 | L13: 11866.14 | M13: 12464.29 | N13: 13062.44 | O13: 13660.59 | P13: 14258.74
A14: 2 | B14: Allocations | C14: 98.33 | D14: déc.-50 | E14: 7777.42 | F14: 8375.57 | G14: 8973.72 | H14: 9571.87 | I14: 10170.02 | J14: 10768.17 | K14: 11366.32 | L14: 11964.47 | M14: 12562.62 | N14: 13160.77 | O14: 13758.92 | P14: 14357.07
A15: 5 | B15: Assurance_Vélo | C15: -12.5 | D15: déc.-50 | E15: 7764.92 | F15: 8363.07 | G15: 8961.22 | H15: 9559.37 | I15: 10157.52 | J15: 10755.67 | K15: 11353.82 | L15: 11951.97 | M15: 12550.12 | N15: 13148.27 | O15: 13746.42 | P15: 14344.57
A16: 6 | B16: Assurance_Vie | C16: -150 | D16: déc.-50 | E16: 7614.92 | F16: 8213.07 | G16: 8811.22 | H16: 9409.37 | I16: 10007.52 | J16: 10605.67 | K16: 11203.82 | L16: 11801.97 | M16: 12400.12 | N16: 12998.27 | O16: 13596.42 | P16: 14194.57
A17: 9 | B17: APL | C17: 55.38 | D17: déc.-50 | E17: 7670.3 | F17: 8268.45 | G17: 8866.6 | H17: 9464.75 | I17: 10062.9 | J17: 10661.05 | K17: 11259.2 | L17: 11857.35 | M17: 12455.5 | N17: 13053.65 | O17: 13651.8 | P17: 14249.95
A18: 9 | B18: Emprunt_Renault | C18: -130 | D18: déc.-50 | E18: 7540.3 | F18: 8138.45 | G18: 8736.6 | H18: 9334.75 | I18: 9932.9 | J18: 10531.05 | K18: 11129.2 | L18: 11727.35 | M18: 12325.5 | N18: 12923.65 | O18: 13521.8 | P18: 14119.95
A19: 9 | B19: Scolarité | C19: 32 | D19: déc.-50 | E19: 7572.3 | F19: 8170.45 | G19: 8768.6 | H19: 9366.75 | I19: 9964.9 | J19: 10563.05 | K19: 11161.2 | L19: 11759.35 | M19: 12357.5 | N19: 12955.65 | O19: 13553.8 | P19: 14151.95
A20: 9 | B20: Cantine | C20: -160 | D20: déc.-50 | E20: 7412.3 | F20: 8010.45 | G20: 8608.6 | H20: 9206.75 | I20: 9804.9 | J20: 10403.05 | K20: 11001.2 | L20: 11599.35 | M20: 12197.5 | N20: 12795.65 | O20: 13393.8 | P20: 13991.95
A21: 9 | B21: Assurance_Maison | C21: -45.46 | D21: déc.-50 | E21: 7366.84 | F21: 7964.99 | G21: 8563.14 | H21: 9161.29 | I21: 9759.44 | J21: 10357.59 | K21: 10955.74 | L21: 11553.89 | M21: 12152.04 | N21: 12750.19 | O21: 13348.34 | P21: 13946.49
A22: 12 | B22: Eau | C22: -75.16 | D22: déc.-50 | E22: 7291.68 | F22: 7889.83 | G22: 8487.98 | H22: 9086.13 | I22: 9684.28 | J22: 10282.43 | K22: 10880.58 | L22: 11478.73 | M22: 12076.88 | N22: 12675.03 | O22: 13273.18 | P22: 13871.33
A23: 14 | B23: Internet | C23: -39.9 | D23: déc.-50 | E23: 7251.78 | F23: 7849.93 | G23: 8448.08 | H23: 9046.23 | I23: 9644.38 | J23: 10242.53 | K23: 10840.68 | L23: 11438.83 | M23: 12036.98 | N23: 12635.13 | O23: 13233.28 | P23: 13831.43
A24: 15 | B24: Mutuelle_Verte | C24: -192.24 | D24: déc.-50 | E24: 7059.54 | F24: 7657.69 | G24: 8255.84 | H24: 8853.99 | I24: 9452.14 | J24: 10050.29 | K24: 10648.44 | L24: 11246.59 | M24: 11844.74 | N24: 12442.89 | O24: 13041.04 | P24: 13639.19
A25: 15 | B25: Impôts_Foncier | C25: -102 | D25: déc.-50 | E25: 6957.54 | F25: 7555.69 | G25: 8153.84 | H25: 8751.99 | I25: 9350.14 | J25: 9948.29 | K25: 10546.44 | L25: 11144.59 | M25: 11742.74 | N25: 12340.89 | O25: 12939.04 | P25: 13537.19
A26: 15 | B26: Impôts_Locaux | C26: -71 | D26: déc.-50 | E26: 6886.54 | F26: 7484.69 | G26: 8082.84 | H26: 8680.99 | I26: 9279.14 | J26: 9877.29 | K26: 10475.44 | L26: 11073.59 | M26: 11671.74 | N26: 12269.89 | O26: 12868.04 | P26: 13466.19
A27: 15 | B27: Loyer | C27: -750 | D27: 2050-12-01 | E27: 6136.54 | F27: 6734.69 | G27: 7332.84 | H27: 7930.99 | I27: 8529.14 | J27: 9127.29 | K27: 9725.44 | L27: 10323.59 | M27: 10921.74 | N27: 11519.89 | O27: 12118.04 | P27: 12716.19
A28: 20 | B28: Téléphone_Polo | C28: 17.99 | D28: déc.-50 | E28: 6154.53 | F28: 6752.68 | G28: 7350.83 | H28: 7948.98 | I28: 8547.13 | J28: 9145.28 | K28: 9743.43 | L28: 10341.58 | M28: 10939.73 | N28: 11537.88 | O28: 12136.03 | P28: 12734.18
A29: 25 | B29: EDF | C29: -68.97 | D29: déc.-50 | E29: 6085.56 | F29: 6683.71 | G29: 7281.86 | H29: 7880.01 | I29: 8478.16 | J29: 9076.31 | K29: 9674.46 | L29: 10272.61 | M29: 10870.76 | N29: 11468.91 | O29: 12067.06 | P29: 12665.21
A30: 25 | B30: Epargne | C30: -150 | D30: déc.-50 | E30: 5935.56 | F30: 6533.71 | G30: 7131.86 | H30: 7730.01 | I30: 8328.16 | J30: 8926.31 | K30: 9524.46 | L30: 10122.61 | M30: 10720.76 | N30: 11318.91 | O30: 11917.06 | P30: 12515.21
A31: 25 | B31: Téléphone_Véro | C31: -17.99 | D31: 2050-12-01 | E31: 5917.57 | F31: 6515.72 | G31: 7113.87 | H31: 7712.02 | I31: 8310.17 | J31: 8908.32 | K31: 9506.47 | L31: 10104.62 | M31: 10702.77 | N31: 11300.92 | O31: 11899.07 | P31: 12497.22
A32: 30 | B32: Dépense courante prévision | C32: -1200 | D32: déc.-50 | E32: 4717.57 | F32: 5315.72 | G32: 5913.87 | H32: 6512.02 | I32: 7110.17 | J32: 7708.32 | K32: 8306.47 | L32: 8904.62 | M32: 9502.77 | N32: 10100.92 | O32: 10699.07 | P32: 11297.22
D33: déc.-50 | E33: =IF(AND($E$7<D33,C33<>0),E32+C33,IF(AND($E$7>D33,C33<>0),E32,IF(AND($E$7<D33,C33=0),""))) ->  | F33: =IF(AND($F$7<D33,C33<>0),F32+C33,IF(AND($F$7>D33,C33<>0),F32,IF(AND($F$7<D33,C33=0),""))) ->  | G33: =IF(AND($G$7<D33,C33<>0),G32+C33,IF(AND($G$7>D33,C33<>0),G32,IF(AND($G$7<D33,C33=0),""))) ->  | H33: =IF(AND($H$7<D33,C33<>0),H32+C33,IF(AND($H$7>D33,C33<>0),H32,IF(AND($H$7<D33,C33=0),""))) ->  | I33: =IF(AND($I$7<D33,C33<>0),I32+C33,IF(AND($I$7>D33,C33<>0),I32,IF(AND($I$7<D33,C33=0),""))) ->  | J33: =IF(AND($J$7<D33,C33<>0),J32+C33,IF(AND($J$7>D33,C33<>0),J32,IF(AND($J$7<D33,C33=0),""))) ->  | K33: =IF(AND($K$7<D33,C33<>0),K32+C33,IF(AND($K$7>D33,C33<>0),K32,IF(AND($K$7<D33,C33=0),""))) ->  | L33: =IF(AND($L$7<D33,C33<>0),L32+C33,IF(AND($L$7>D33,C33<>0),L32,IF(AND($L$7<D33,C33=0),""))) ->  | M33: =IF(AND($M$7<D33,C33<>0),M32+C33,IF(AND($M$7>D33,C33<>0),M32,IF(AND($M$7<D33,C33=0),""))) ->  | N33: =IF(AND($N$7<D33,C33<>0),N32+C33,IF(AND($N$7>D33,C33<>0),N32,IF(AND($N$7<D33,C33=0),""))) ->  | O33: =IF(AND($O$7<D33,C33<>0),O32+C33,IF(AND($O$7>D33,C33<>0),O32,IF(AND($O$7<D33,C33=0),""))) ->  | P33: =IF(AND($P$7<D33,C33<>0),P32+C33,IF(AND($P$7>D33,C33<>0),P32,IF(AND($P$7<D33,C33=0),""))) -> 
D34: déc.-50
D35: déc.-50
D36: 2050-12-01
D37: 2050-12-01
D38: 2050-12-01
D39: 2050-12-01
D40: 2050-12-01
D41: 2050-12-01
D42: 2050-12-01
D43: 2050-12-01
D44: 2050-12-01
D45: 2050-12-01
D46: 2050-12-01
D47: 2050-12-01
D48: 2050-12-01
D49: 2050-12-01
D50: 2050-12-01
D51: 2050-12-01
D52: 2050-12-01
D53: 2050-12-01
D54: 2050-12-01
D55: 2050-12-01
D56: 2050-12-01
D57: 2050-12-01
D58: 2050-12-01
D59: 2050-12-01
D60: 2050-12-01
D61: 2050-12-01
D62: 2050-12-01
D63: 2050-12-01
D64: 2050-12-01
D65: 2050-12-01
D66: 2050-12-01
D67: 2050-12-01
D68: 2050-12-01
D69: 2050-12-01
D70: 2050-12-01
D71: 2050-12-01
D72: 2050-12-01
D73: 2050-12-01
D74: 2050-12-01 | E74: =IF(AND($E$7<D74,C74<>0),E73+C74,IF(AND($E$7>D74,C74<>0),E73,IF(AND($E$7<D74,C74=0),""))) ->  | F74: =IF(AND($F$7<D74,C74<>0),F73+C74,IF(AND($F$7>D74,C74<>0),F73,IF(AND($F$7<D74,C74=0),""))) ->  | G74: =IF(AND($G$7<D74,C74<>0),G73+C74,IF(AND($G$7>D74,C74<>0),G73,IF(AND($G$7<D74,C74=0),""))) ->  | H74: =IF(AND($H$7<D74,C74<>0),H73+C74,IF(AND($H$7>D74,C74<>0),H73,IF(AND($H$7<D74,C74=0),""))) ->  | I74: =IF(AND($I$7<D74,C74<>0),I73+C74,IF(AND($I$7>D74,C74<>0),I73,IF(AND($I$7<D74,C74=0),""))) ->  | J74: =IF(AND($J$7<D74,C74<>0),J73+C74,IF(AND($J$7>D74,C74<>0),J73,IF(AND($J$7<D74,C74=0),""))) ->  | K74: =IF(AND($K$7<D74,C74<>0),K73+C74,IF(AND($K$7>D74,C74<>0),K73,IF(AND($K$7<D74,C74=0),""))) ->  | L74: =IF(AND($L$7<D74,C74<>0),L73+C74,IF(AND($L$7>D74,C74<>0),L73,IF(AND($L$7<D74,C74=0),""))) ->  | M74: =IF(AND($M$7<D74,C74<>0),M73+C74,IF(AND($M$7>D74,C74<>0),M73,IF(AND($M$7<D74,C74=0),""))) ->  | N74: =IF(AND($N$7<D74,C74<>0),N73+C74,IF(AND($N$7>D74,C74<>0),N73,IF(AND($N$7<D74,C74=0),""))) ->  | O74: =IF(AND($O$7<D74,C74<>0),O73+C74,IF(AND($O$7>D74,C74<>0),O73,IF(AND($O$7<D74,C74=0),""))) ->  | P74: =IF(AND($P$7<D74,C74<>0),P73+C74,IF(AND($P$7>D74,C74<>0),P73,IF(AND($P$7<D74,C74=0),""))) -> 
D75: 2050-12-01
D76: 2050-12-01
D77: 2050-12-01
D78: 2050-12-01
D79: 2050-12-01
D80: 2050-12-01
D81: 2050-12-01
D82: 2050-12-01
D83: 2050-12-01
D84: 2050-12-01
D85: 2050-12-01
D86: 2050-12-01
D87: 2050-12-01
D88: 2050-12-01
D89: 2050-12-01
D90: 2050-12-01
D91: 2050-12-01
D92: 2050-12-01
D93: 2050-12-01
D94: 2050-12-01
D95: 2050-12-01
D96: 2050-12-01
D97: 2050-12-01
D98: 2050-12-01
D99: 2050-12-01
D100: 2050-12-01
D101: 2050-12-01
D102: 2050-12-01
D103: 2050-12-01
D104: 2050-12-01
D105: 2050-12-01
D106: 2050-12-01
D107: 2050-12-01
D108: 2050-12-01
D109: 2050-12-01
D110: 2050-12-01
D111: 2050-12-01
